fUST/lending_fUST_20240826
["ID","MTS","AMOUNT","RATE_DAILY","PERIOD"]
[336029947,1724671849416,-1222.300309,0.00013106,2]
[336029949,1724671849424,-1222.300309,0.00013106,2]
[336029951,1724671849435,-500.0,0.00013106,2]
[336029953,1724671849444,-500.0,0.00013106,2]
[336029955,1724671849454,-500.0,0.00013106,2]
[336029957,1724671849464,-500.0,0.00013106,2]
[336029959,1724671849477,-243.242409,0.00013106,2]
[336029961,1724671849486,-151.0,0.00013106,2]
[336029963,1724671849495,-1121.01,0.00013106,2]
[336029965,1724671849504,-1121.01,0.00013106,2]
[336029967,1724671849514,-500.0,0.00013106,2]
[336029969,1724671849523,-1031.51,0.00013106,2]
[336029971,1724671849532,-500.0,0.00013106,2]
[336029973,1724671849540,-500.0,0.00013106,2]
[336029975,1724671849549,-1026.65,0.00013106,2]
[336029977,1724671849559,-1131.18,0.00013106,2]
[336029979,1724671849568,-820.87,0.00013106,2]
[336029981,1724671849577,-324.564552,0.00013106,2]
[336029983,1724671849587,-500.0,0.00013106,2]
[336029985,1724671849597,-1198.22,0.00013106,2]
[336029987,1724671849606,-324.564552,0.00013106,2]
[336029989,1724671849615,-953.85,0.00013106,2]
[336029991,1724671849625,-500.0,0.00013106,2]
[336029993,1724671849634,-327.608548,0.00013106,2]
[336029995,1724671849644,-500.0,0.00013106,2]
[336029997,1724671849654,-327.608548,0.00013106,2]
[336029999,1724671849664,-895.76,0.00013106,2]
[336030001,1724671849674,-500.0,0.00013106,2]
[336030004,1724671849684,-500.82500636,0.00013106,2]
[336030005,1724671849694,-500.0,0.00013106,2]
[336030007,1724671849703,-500.0,0.00013106,2]
[336030009,1724671849712,-500.0,0.00013106,2]
[336030011,1724671849722,-500.0,0.00013106,2]
[336030013,1724671849732,-500.0,0.00013106,2]
[336030015,1724671849741,-500.0,0.00013106,2]
[336030017,1724671849751,-500.0,0.00013106,2]
[336030019,1724671849760,-500.0,0.00013106,2]
[336030021,1724671849770,-716.787279,0.00013106,2]
[336030023,1724671849779,-716.787279,0.00013106,2]
[336030025,1724671849789,-1233.19,0.00013106,2]
[336030027,1724671849799,-500.92623044,0.00013106,2]
[336030029,1724671849808,-512.4,0.00013106,2]
[336030031,1724671849817,-1117.22,0.00013106,2]
[336030033,1724671849828,-750.83,0.00013106,2]
[336030035,1724671849838,-500.0,0.00013106,2]
[336030037,1724671849849,-697.4,0.00013106,2]
[336030039,1724671849858,-670.67,0.00013106,2]
[336030041,1724671849869,-500.0,0.00013106,2]
[336030044,1724671849882,-500.24096128,0.00013106,2]
[336030046,1724671849892,-1169.17,0.00013106,2]
[336030048,1724671849902,-659.04,0.00013106,2]
[336030050,1724671849912,-402.072039,0.00013106,2]
[336030052,1724671849922,-402.072039,0.00013106,2]
[336030054,1724671849933,-500.0,0.00013106,2]
[336030056,1724671849943,-500.0,0.00013106,2]
[336030058,1724671849954,-180.365114,0.00013106,2]
[336030060,1724671849964,-500.0,0.00013106,2]
[336030061,1724671849975,-180.365114,0.00013106,2]
[336030062,1724671849988,-1181.14,0.00013106,2]
[336030063,1724671849999,-243.449082,0.00013106,2]
[336030064,1724671850008,-243.449082,0.00013106,2]
[336030066,1724671850018,-500.0,0.00013106,2]
[336030068,1724671850028,-151.0,0.00013106,2]
[336030070,1724671850037,-151.0,0.00013106,2]
[336030072,1724671850046,-243.449082,0.00013106,2]
[336030074,1724671850056,-243.449082,0.00013106,2]
[336030076,1724671850066,-151.0,0.00013106,2]
[336030078,1724671850075,-151.0,0.00013106,2]
[336030080,1724671850085,-500.0,0.00013106,2]
[336030082,1724671850094,-500.0,0.00013106,2]
[336030084,1724671850104,-500.0,0.00013106,2]
[336030086,1724671850113,-500.0,0.00013106,2]
[336030088,1724671850122,-861.72,0.00013106,2]
[336030090,1724671850132,-1088.63,0.00013106,2]
[336030092,1724671850141,-151.0,0.00013106,2]
[336030095,1724671850150,-500.0,0.00013106,2]
[336030097,1724671850160,-151.0,0.00013106,2]
[336030099,1724671850170,-151.0,0.00013106,2]
[336030101,1724671850181,-500.0,0.00013106,2]
[336030103,1724671850191,-2117.222583,0.00013106,2]
[336030105,1724671850201,-2117.222583,0.00013106,2]
[336030107,1724671850211,-2117.222583,0.00013106,2]
[336030109,1724671850222,-631.04,0.00013106,2]
[336030111,1724671850232,-2117.222583,0.00013106,2]
[336030113,1724671850242,-500.0,0.00013106,2]
[336030115,1724671850252,-500.0,0.00013106,2]
[336030118,1724671850264,-500.0,0.00013106,2]
[336030120,1724671850273,-647.61,0.00013106,2]
[336030122,1724671850283,-500.0,0.00013106,2]
[336030124,1724671850292,-500.7811398,0.00013106,2]
[336030126,1724671850302,-956.13,0.00013106,2]
[336030128,1724671850311,-500.0,0.00013106,2]
[336030130,1724671850321,-500.0,0.00013106,2]
[336030132,1724671850331,-1148.348579,0.00013106,2]
[336030134,1724671850340,-2658.516725,0.00013106,2]
[336030136,1724671850351,-1185.15,0.00013106,2]
[336030138,1724671850361,-843.9,0.00013106,2]
[336030140,1724671850370,-2658.516725,0.00013106,2]
[336030142,1724671850379,-2658.516725,0.00013106,2]
[336030144,1724671850388,-1148.348579,0.00013106,2]
[336030146,1724671850402,-2658.516725,0.00013106,2]
[336030148,1724671850411,-500.0,0.00013106,2]
[336030150,1724671850420,-602.86,0.00013106,2]
[336030152,1724671850430,-650.52,0.00013106,2]
[336030154,1724671850439,-151.0,0.00013106,2]
[336030156,1724671850448,-151.0,0.00013106,2]
[336030158,1724671850457,-1468.561855,0.00013106,2]
[336030160,1724671850467,-500.0,0.00013106,2]
[336030162,1724671850478,-1468.561855,0.00013106,2]
[336030164,1724671850488,-1468.561855,0.00013106,2]
[336030166,1724671850497,-1468.561855,0.00013106,2]
[336030168,1724671850507,-500.0,0.00013106,2]
[336030170,1724671850516,-1274.692444,0.00013106,2]
[336030171,1724671850525,-1274.692444,0.00013106,2]
[336030173,1724671850534,-1274.692444,0.00013106,2]
[336030176,1724671850543,-1329.42,0.00013106,2]
[336030177,1724671850553,-1329.42,0.00013106,2]
[336030179,1724671850564,-1329.42,0.00013106,2]
[336030181,1724671850574,-1329.42,0.00013106,2]
[336030184,1724671850584,-1329.42,0.00013106,2]
[336030186,1724671850594,-1329.42,0.00013106,2]
[336030188,1724671850605,-1329.42,0.00013106,2]
[336030190,1724671850616,-1329.42,0.00013106,2]
[336030192,1724671850626,-1329.42,0.00013106,2]
[336030194,1724671850636,-1274.692444,0.00013106,2]
[336030196,1724671850646,-1274.692444,0.00013106,2]
[336030198,1724671850656,-1274.692444,0.00013106,2]
[336030200,1724671850666,-3364.403532,0.00013106,2]
[336030202,1724671850675,-3364.403532,0.00013106,2]
[336030204,1724671850687,-151.0,0.00013106,2]
[336030206,1724671850697,-151.0,0.00013106,2]
[336030209,1724671850709,-151.0,0.00013106,2]
[336030211,1724671850719,-3364.403532,0.00013106,2]
[336030213,1724671850728,-3364.403532,0.00013106,2]
[336030215,1724671850738,-3164.0,0.00013106,2]
[336030217,1724671850748,-1697.10878975,0.00013106,2]
[336030277,1724671851315,-153.0,0.00012822,2]
[336030280,1724671851325,-500.0,0.00012995,2]
[336030282,1724671851335,-500.0,0.00012995,2]
[336030284,1724671851345,-500.0,0.00013096,2]
[336030286,1724671851355,-1466.89121025,0.00013106,2]
[336030288,1724671851364,-741.08405,0.00013106,2]
[336030289,1724671851374,-741.08405,0.00013106,2]
[336030291,1724671851383,-500.0,0.00013106,2]
[336030293,1724671851395,-741.08405,0.00013106,2]
[336030295,1724671851408,-741.08405,0.00013106,2]
[336030297,1724671851417,-500.0,0.00013106,2]
[336030299,1724671851427,-1256.87548056,0.00013106,2]
[336031088,1724672483072,1640.24017386,0.0001,2]
[336031090,1724672550136,2515.78122782,0.0001,2]
[336031091,1724672561228,3619.64686258,0.0001,2]
[336031092,1724672597585,3049.73924956,0.0001,2]
[336031093,1724672601673,1208.2114952,0.0001,2]
[336031094,1724672607634,16329.96101397,0.0001,2]
[336031095,1724672646301,245.53982429,0.0001,2]
[336031096,1724672679186,3312.84647178,0.0001,2]
[336031097,1724672683262,218.70409946,0.0001,2]
[336031098,1724672687882,1043.44440635,0.0001,2]
[336031099,1724672691431,364.10028061,0.0001,2]
[336031101,1724672699300,155.37252349,0.0001,2]
[336031102,1724672703514,16329.96101397,0.0001,2]
[336031103,1724672707230,546.74672462,0.0001,2]
[336031104,1724672711444,405.39053387,0.0001,2]
[336031105,1724672724195,273.37336231,0.0001,2]
[336031106,1724672729583,4722.19913161,0.0001,2]
[336031107,1724672743155,-42432.2789175,0.00011842,2]
[336031108,1724672743180,-223.12053068,0.00011894,2]
[336031109,1724672743203,-300.0,0.00011986,2]
[336031110,1724672743226,-309.42755902,0.00011999,2]
[336031111,1724672743251,-413.88106461,0.00011999,2]
[336031112,1724672743276,-1000.0,0.00012,2]
[336031113,1724672743298,-213.333965,0.00012005,2]
[336031114,1724672743323,-227.06193845,0.00012121,2]
[336031115,1724672743347,-2112.29265619,0.00012121,2]
[336031116,1724672743372,-553.74,0.00012355,2]
[336031117,1724672743394,-785.92,0.00012355,2]
[336031118,1724672743420,-500.0,0.00012355,2]
[336031119,1724672743445,-837.7,0.00012355,2]
[336031120,1724672743470,-500.0,0.00012355,2]
[336031121,1724672743502,-1535.84,0.00012355,2]
[336031122,1724672743530,-732.91,0.00012355,2]
[336031123,1724672743553,-500.0,0.00012355,2]
[336031124,1724672743577,-894.48,0.00012355,2]
[336031125,1724672743599,-500.0,0.00012444,2]
[336031126,1724672743622,-500.0,0.00012444,2]
[336031127,1724672743646,-500.0,0.00012444,2]
[336031128,1724672743668,-500.0,0.00012444,2]
[336031129,1724672743694,-911.33,0.00012444,2]
[336031130,1724672743717,-519.38556481,0.00012444,2]
[336031131,1724672743741,-706.52,0.00012444,2]
[336031132,1724672743763,-500.0,0.00012444,2]
[336031133,1724672743787,-500.0,0.00012444,2]
[336031134,1724672743808,-500.0,0.00012444,2]
[336031135,1724672743830,-500.0,0.00012444,2]
[336031136,1724672743853,-500.0,0.00012444,2]
[336031137,1724672743877,-500.0,0.00012444,2]
[336031138,1724672743899,-470.29,0.00012445,2]
[336031139,1724672743922,-500.0,0.00012445,2]
[336031140,1724672743945,-500.0,0.00012445,2]
[336031141,1724672743972,-500.0,0.00012445,2]
[336031142,1724672743996,-500.0,0.00012445,2]
[336031143,1724672744021,-500.0,0.00012445,2]
[336031144,1724672744043,-500.0,0.00012445,2]
[336031145,1724672744067,-500.0,0.00012445,2]
[336031146,1724672744090,-500.0,0.00012445,2]
[336031147,1724672744113,-500.0,0.00012445,2]
[336031148,1724672744135,-500.0,0.00012445,2]
[336031149,1724672744158,-500.0,0.00012445,2]
[336031150,1724672744181,-500.0,0.00012445,2]
[336031151,1724672744467,-500.0,0.00012445,2]
[336031152,1724672744490,-500.0,0.00012445,2]
[336031153,1724672744513,-500.0,0.00012445,2]
[336031154,1724672744534,-500.0,0.00012445,2]
[336031155,1724672744557,-500.0,0.00012445,2]
[336031156,1724672744578,-500.0,0.00012445,2]
[336031157,1724672744601,-500.0,0.00012445,2]
[336031158,1724672744623,-500.0,0.00012445,2]
[336031159,1724672744644,-500.0,0.00012445,2]
[336031160,1724672744667,-500.0,0.00012445,2]
[336031161,1724672744692,-500.0,0.00012445,2]
[336031162,1724672744715,-500.0,0.00012445,2]
[336031163,1724672744746,-326.22,0.00012445,2]
[336031164,1724672744769,-8850.44161835,0.00012551,2]
[336031165,1724672744791,-553.74,0.00012629,2]
[336031166,1724672744816,-785.92,0.00012629,2]
[336031167,1724672744839,-500.0,0.00012629,2]
[336031168,1724672744861,-837.7,0.00012629,2]
[336031169,1724672744884,-1535.84,0.00012629,2]
[336031170,1724672744909,-732.91,0.00012629,2]
[336031171,1724672744933,-500.0,0.00012629,2]
[336031172,1724672744965,-213.333965,0.0001263,2]
[336031173,1724672744988,-2312.94938685,0.00012679,2]
[336031174,1724672745010,-4834.11956883,0.00012699,2]
[336031175,1724672745033,-500.0,0.00012718,2]
[336031176,1724672745055,-500.0,0.00012718,2]
[336031177,1724672745077,-500.0,0.00012718,2]
[336031178,1724672745098,-456.7940498,0.00012718,2]
[336031179,1724672745121,-911.33,0.00012718,2]
[336031180,1724672745142,-706.52,0.00012718,2]
[336031181,1724672745163,-502.06130075,0.00012718,2]
[336031182,1724672745185,-500.0,0.00012718,2]
[336031183,1724672745206,-500.0,0.00012718,2]
[336031184,1724672745229,-501.05349696,0.00012718,2]
[336031185,1724672745251,-254.16034572,0.00012718,2]
[336031186,1724672745272,-500.0,0.00012718,2]
[336031187,1724672745293,-2312.94938681,0.00012733,2]
[336031188,1724672745314,-570.19,0.00012779,2]
[336031189,1724672745335,-505.54478634,0.00012779,2]
[336031190,1724672745356,-500.0,0.00012779,2]
[336031191,1724672745377,-819.3,0.00012779,2]
[336031192,1724672745400,-500.0,0.00012779,2]
[336031193,1724672745421,-500.0,0.00012779,2]
[336031194,1724672745443,-500.0,0.00012779,2]
[336031195,1724672745466,-500.0,0.00012779,2]
[336031196,1724672745487,-1182.52,0.00012779,2]
[336031197,1724672745510,-500.0,0.00012779,2]
[336031198,1724672745532,-866.65,0.00012779,2]
[336031199,1724672745555,-500.0,0.00012779,2]
[336031200,1724672745576,-676.14,0.00012779,2]
[336031201,1724672745598,-500.0,0.00012779,2]
[336031202,1724672745620,-500.0,0.00012779,2]
[336031203,1724672745643,-500.0,0.00012779,2]
[336031204,1724672745664,-500.0,0.00012779,2]
[336031205,1724672745689,-500.0,0.00012779,2]
[336031206,1724672745711,-500.0,0.00012779,2]
[336031207,1724672745734,-519.36598412,0.00012779,2]
[336031208,1724672745757,-1011.51,0.00012779,2]
[336031209,1724672745781,-1044.04,0.00012779,2]
[336031210,1724672745803,-905.82,0.00012779,2]
[336031211,1724672745825,-500.0,0.00012779,2]
[336031212,1724672745846,-767.46,0.00012779,2]
[336031213,1724672745869,-695.47,0.00012779,2]
[336031214,1724672745890,-776.66,0.00012779,2]
[336031215,1724672745911,-761.68,0.00012779,2]
[336031216,1724672745932,-920.96,0.00012779,2]
[336031217,1724672745955,-580.58,0.00012779,2]
[336031218,1724672745980,-500.0,0.00012779,2]
[336031219,1724672746001,-500.0,0.00012779,2]
[336031220,1724672746023,-500.0,0.00012779,2]
[336031221,1724672746044,-644.13,0.00012779,2]
[336031222,1724672746066,-1131.08,0.00012779,2]
[336031223,1724672746088,-639.36,0.00012779,2]
[336031224,1724672746110,-500.0,0.00012779,2]
[336031225,1724672746130,-500.0,0.00012779,2]
[336031226,1724672746151,-163.41330039,0.00012779,2]
[336031227,1724672746172,-1108.69,0.00012779,2]
[336031228,1724672746194,-500.0,0.00012779,2]
[336031229,1724672746218,-500.0,0.00012779,2]
[336031230,1724672746241,-500.0,0.00012779,2]
[336031231,1724672746265,-500.0,0.00012779,2]
[336031232,1724672746290,-520.87594148,0.00012779,2]
[336031233,1724672746311,-504.37,0.00012779,2]
[336031234,1724672746333,-500.0,0.00012779,2]
[336031235,1724672746355,-510.28937839,0.00012779,2]
[336031236,1724672746376,-568.87,0.00012779,2]
[336031237,1724672746398,-500.0,0.00012779,2]
[336031238,1724672746420,-549.8,0.00012779,2]
[336031239,1724672746442,-500.0,0.00012779,2]
[336031240,1724672746466,-500.0,0.00012779,2]
[336031241,1724672746489,-500.0,0.00012779,2]
[336031242,1724672746510,-939.39,0.00012779,2]
[336031243,1724672746531,-500.0,0.00012779,2]
[336031244,1724672746551,-1614.5867324,0.00012782,2]
[336031245,1724672746572,-2312.94938681,0.00012787,2]
[336031246,1724672746593,-2312.94938681,0.0001284,2]
[336031247,1724672746616,-24662.33749331,0.00012886,2]
[336031248,1724672754797,273.37336231,0.0001,2]
[336031249,1724672771280,194.64157804,0.0001,2]
[336031250,1724672792886,1033.59762914,0.0001,2]
[336031251,1724672805139,271.57538297,0.0001,2]
[336031252,1724672809806,5284.8710037,0.0001,2]
[336031254,1724672826144,405.61368465,0.0001,2]
[336031255,1724672827156,-2800.0,0.00012,2]
[336031256,1724672827182,-300.0,0.0001212,2]
[336031257,1724672827204,-300.0,0.0001212,2]
[336031258,1724672827230,-821.17461397,0.00012121,2]
[336031259,1724672827254,-1614.23476324,0.00012121,2]
[336031260,1724672827276,-695.14803561,0.00012121,2]
[336031261,1724672827298,-740.59,0.00012355,2]
[336031262,1724672827331,-576.85,0.00012355,2]
[336031263,1724672827352,-500.0,0.00012355,2]
[336031264,1724672827374,-618.08,0.00012355,2]
[336031265,1724672827396,-500.0,0.00012355,2]
[336031266,1724672827418,-500.0,0.00012355,2]
[336031267,1724672827439,-744.58,0.00012355,2]
[336031268,1724672827460,-500.0,0.00012355,2]
[336031269,1724672827484,-4823.06,0.00012355,2]
[336031270,1724672827506,-605.89,0.00012355,2]
[336031271,1724672827528,-967.71,0.00012355,2]
[336031272,1724672827552,-592.90365218,0.00012355,2]
[336031273,1724672837105,-230.15361077,0.00012121,2]
[336031274,1724672837127,-243.68634782,0.00012355,2]
[336031275,1724672837150,-994.78,0.00012355,2]
[336031276,1724672837174,-500.0,0.00012355,2]
[336031277,1724672837197,-500.0,0.00012444,2]
[336031278,1724672837222,-719.09,0.00012444,2]
[336031279,1724672837246,-500.0,0.00012444,2]
[336031280,1724672837270,-500.0,0.00012444,2]
[336031281,1724672837297,-500.0,0.00012444,2]
[336031282,1724672837320,-500.0,0.00012444,2]
[336031283,1724672837342,-500.0,0.00012444,2]
[336031284,1724672837366,-500.0,0.00012444,2]
[336031285,1724672837388,-500.0,0.00012444,2]
[336031286,1724672837411,-500.0,0.00012444,2]
[336031287,1724672837432,-500.0,0.00012444,2]
[336031288,1724672837453,-150.0,0.00012444,2]
[336031289,1724672837475,-500.0,0.00012444,2]
[336031290,1724672837496,-500.0,0.00012444,2]
[336031291,1724672837520,-500.0,0.00012444,2]
[336031292,1724672837544,-618.56926949,0.00012444,2]
[336031293,1724672837567,-500.0,0.00012444,2]
[336031294,1724672837587,-500.0,0.00012444,2]
[336031295,1724672837608,-500.0,0.00012444,2]
[336031296,1724672837630,-500.0,0.00012444,2]
[336031297,1724672837650,-500.0,0.00012444,2]
[336031298,1724672837671,-500.0,0.00012444,2]
[336031299,1724672837692,-22417.80205752,0.00012628,2]
[336031300,1724672837722,-894.48,0.00012629,2]
[336031301,1724672837747,-740.59,0.00012629,2]
[336031302,1724672837773,-576.85,0.00012629,2]
[336031303,1724672837798,-618.08,0.00012629,2]
[336031304,1724672837822,-500.0,0.00012629,2]
[336031305,1724672837845,-500.0,0.00012629,2]
[336031306,1724672837868,-744.58,0.00012629,2]
[336031307,1724672837890,-500.0,0.00012629,2]
[336031308,1724672837912,-605.89,0.00012629,2]
[336031309,1724672837934,-967.71,0.00012629,2]
[336031310,1724672837959,-836.59,0.00012629,2]
[336031311,1724672837983,-994.78,0.00012629,2]
[336031312,1724672838006,-500.0,0.00012629,2]
[336031313,1724672838029,-153.0,0.000127,2]
[336031314,1724672838050,-500.0,0.00012718,2]
[336031315,1724672838073,-719.09,0.00012718,2]
[336031316,1724672838100,-500.0,0.00012718,2]
[336031317,1724672838122,-500.0,0.00012718,2]
[336031318,1724672838145,-500.0,0.00012718,2]
[336031319,1724672838167,-500.0,0.00012718,2]
[336031320,1724672838188,-500.0,0.00012718,2]
[336031321,1724672838210,-500.0,0.00012718,2]
[336031322,1724672838232,-500.0,0.00012718,2]
[336031323,1724672838255,-500.0,0.00012718,2]
[336031324,1724672838277,-500.0,0.00012718,2]
[336031325,1724672838299,-150.0,0.00012718,2]
[336031326,1724672838322,-500.84550112,0.00012718,2]
[336031327,1724672838344,-500.0,0.00012718,2]
[336031328,1724672838370,-500.0,0.00012718,2]
[336031329,1724672838392,-404.16637314,0.00012718,2]
[336031330,1724672838411,-500.0,0.00012718,2]
[336031331,1724672838432,-482.67296286,0.00012718,2]
[336031332,1724672838452,-526.99650808,0.00012718,2]
[336031333,1724672838473,-500.0,0.00012718,2]
[336031334,1724672838495,-500.0,0.00012718,2]
[336031335,1724672838518,-717.81,0.00012779,2]
[336031336,1724672838547,-500.0,0.00012779,2]
[336031337,1724672838568,-811.714428,0.00012779,2]
[336031338,1724672838589,-664.71,0.00012779,2]
[336031339,1724672838609,-500.0,0.00012779,2]
[336031340,1724672838631,-500.0,0.00012779,2]
[336031341,1724672838651,-500.0,0.00012779,2]
[336031342,1724672838673,-539.7059292,0.00012779,2]
[336031343,1724672838693,-500.0,0.00012779,2]
[336031344,1724672838717,-626.77,0.00012779,2]
[336031345,1724672838740,-503.08077719,0.00012779,2]
[336031346,1724672838763,-500.0,0.00012779,2]
[336031347,1724672838785,-10.94488309,0.00012779,2]
[336031348,1724672846146,-2197.72,0.00012355,2]
[336031349,1724672846167,-897.96,0.00012355,2]
[336031350,1724672846187,-523.01492503,0.00012444,2]
[336031351,1724672846208,-500.0,0.00012444,2]
[336031352,1724672846229,-500.0,0.00012444,2]
[336031353,1724672846251,-2197.72,0.00012629,2]
[336031354,1724672846275,-897.96,0.00012629,2]
[336031355,1724672846296,-500.0,0.00012718,2]
[336031356,1724672846316,-356.63613977,0.00012779,2]
[336031357,1724672846337,-1365.58,0.00012779,2]
[336031358,1724672846357,-915.03,0.00012779,2]
[336031359,1724672846378,-500.0,0.00012779,2]
[336031360,1724672846403,-500.0,0.00012779,2]
[336031361,1724672846425,-851.87,0.00012779,2]
[336031362,1724672846448,-786.91,0.00012779,2]
[336031363,1724672846470,-306.0,0.000128,2]
[336031364,1724672846492,-4823.06,0.00012858,2]
[336031365,1724672846515,-21058.70892879,0.00012886,2]
[336031366,1724672846537,-2312.94938681,0.00012894,2]
[336031367,1724672846558,-1108.39736799,0.00012895,2]
[336031368,1724672846579,-4823.06,0.00012895,2]
[336031369,1724672846600,-4823.06,0.00012895,2]
[336031370,1724672846622,-79958.2766819,0.00012896,2]
[336031371,1724672846642,-500.0,0.00012897,2]
[336031372,1724672846663,-500.0,0.00012897,2]
[336031373,1724672846686,-1245.63,0.00012897,2]
[336031374,1724672846707,-742.05,0.00012897,2]
[336031375,1724672846733,-500.0,0.00012897,2]
[336031376,1724672846755,-1614.84,0.00012897,2]
[336031377,1724672846778,-500.0,0.00012897,2]
[336031378,1724672846801,-589.25,0.00012897,2]
[336031379,1724672846822,-522.36,0.00012897,2]
[336031380,1724672846844,-802.48,0.00012897,2]
[336031381,1724672846865,-500.0,0.00012897,2]
[336031382,1724672846889,-28356.75,0.00012897,2]
[336031383,1724672846911,-500.0,0.00012897,2]
[336031384,1724672846932,-501.35,0.00012897,2]
[336031385,1724672846953,-500.0,0.00012897,2]
[336031386,1724672846976,-1259.48,0.00012897,2]
[336031387,1724672846998,-859.01,0.00012897,2]
[336031388,1724672847020,-500.0,0.00012897,2]
[336031389,1724672847043,-500.0,0.00012897,2]
[336031390,1724672847064,-535.64,0.00012897,2]
[336031391,1724672847085,-500.0,0.00012897,2]
[336031392,1724672847107,-506.56,0.00012897,2]
[336031393,1724672847129,-500.0,0.00012897,2]
[336031394,1724672847151,-500.0,0.00012897,2]
[336031395,1724672847174,-500.0,0.00012897,2]
[336031396,1724672847199,-608.64,0.00012897,2]
[336031397,1724672847219,-1049.55,0.00012897,2]
[336031398,1724672847241,-525.87,0.00012897,2]
[336031399,1724672847263,-703.73,0.00012897,2]
[336031400,1724672847285,-500.0,0.00012897,2]
[336031401,1724672847306,-500.0,0.00012897,2]
[336031402,1724672847327,-666.91,0.00012897,2]
[336031403,1724672847350,-1662.39,0.00012897,2]
[336031404,1724672847371,-500.0,0.00012897,2]
[336031405,1724672847393,-1378.45,0.00012897,2]
[336031406,1724672847414,-500.0,0.00012897,2]
[336031407,1724672847437,-514.21811915,0.00012897,2]
[336031408,1724672847460,-619.22,0.00012897,2]
[336031409,1724672847483,-868.98,0.00012897,2]
[336031410,1724672847506,-900.25,0.00012897,2]
[336031411,1724672847527,-500.0,0.00012897,2]
[336031412,1724672847549,-629.02,0.00012897,2]
[336031413,1724672847571,-500.0,0.00012897,2]
[336031414,1724672847594,-852.37,0.00012897,2]
[336031415,1724672847616,-4935.89062008,0.000129,2]
[336031416,1724672847638,-22860.523211,0.000129,2]
[336031417,1724672847660,-553.74,0.00012903,2]
[336031418,1724672847683,-785.92,0.00012903,2]
[336031419,1724672847708,-500.0,0.00012903,2]
[336031420,1724672847735,-837.7,0.00012903,2]
[336031421,1724672847759,-1535.84,0.00012903,2]
[336031422,1724672847782,-732.91,0.00012903,2]
[336031423,1724672847807,-500.0,0.00012903,2]
[336031424,1724672847831,-894.48,0.00012903,2]
[336031425,1724672847853,-740.59,0.00012903,2]
[336031426,1724672847875,-576.85,0.00012903,2]
[336031427,1724672847896,-618.08,0.00012903,2]
[336031428,1724672847919,-500.0,0.00012903,2]
[336031429,1724672847941,-500.0,0.00012903,2]
[336031430,1724672847963,-744.58,0.00012903,2]
[336031431,1724672847986,-500.0,0.00012903,2]
[336031432,1724672848006,-605.89,0.00012903,2]
[336031433,1724672848028,-967.71,0.00012903,2]
[336031434,1724672848048,-836.59,0.00012903,2]
[336031435,1724672848070,-994.78,0.00012903,2]
[336031436,1724672848092,-500.0,0.00012903,2]
[336031437,1724672848114,-2197.72,0.00012903,2]
[336031438,1724672848136,-897.96,0.00012903,2]
[336031439,1724672848160,-204.50536527,0.00012934,2]
[336031440,1724672848182,-802.81641523,0.00012971,2]
[336031441,1724672848203,-493.69395889,0.00012971,2]
[336031442,1724672848228,-404.72731861,0.00012971,2]